Cogmind - Beta 14 @@@ ROGUE MODE // 2024.09.06 @ 18:16:28 Player: OctagonalPrism Result: Destroyed by as-76684 with Assembled Blade Performance ------------- Evolutions (0) 0 Regions Visited (2) 400 Robots Destroyed (34) 170 Value Destroyed (826) 826 Prototype IDs (0) 0 Alien Tech Used (0) 0 Bonus (0) 0 TOTAL SCORE: 1396 Bonus ------- None Cogmind --------- Core Integrity 0/250 Matter 212/300 Energy 125/125 System Corruption 0% Temperature Cool (0) Movement Rolling (115) Ox1 Location -10/Mines Parts ------- > --- POWER (1) -------- Light Ion Engine > --- PROPULSION (2) --- Light Treads Compact Wheel > --- UTILITY (2) ------ Medium Storage Unit Visual Processing Unit > --- WEAPON (2) ------- Light Cannon Grenade Launcher > --- INVENTORY (10) --- Light Ion Engine Structural Scanner Sensor Array Signal Interpreter Utility Shielding Light Assault Rifle Light Assault Rifle Mining Claw Peak State ------------ > --- POWER ------------ Light Nuclear Core > --- PROPULSION ------- Light Treads Light Treads > --- UTILITY ---------- Medium Storage Unit Visual Processing Unit > --- WEAPON ----------- Small Laser Light Assault Rifle > --- INVENTORY -------- Ion Engine Sensor Array Signal Interpreter [Rating: 10] Favorites ----------- Power Light Nuclear Core Engine Ion Engine Power Core Light Nuclear Core Propulsion Light Treads Treads Light Treads Wheel Compact Wheel Utility Visual Processing Unit Storage Medium Storage Unit Processor Visual Processing Unit Weapon Light Assault Rifle Energy Gun Small Laser Ballistic Gun Light Assault Rifle Ballistic Cannon Light Cannon Launcher Grenade Launcher Build | -11 -10 -10 ------- Run | Yrd Mat Min Slots Evolved . | . . . Power . | . . . Propulsion . | . . . Utility . | . . . Weapon . | . . . Parts Attached 23 | 6 16 1 Power 4 | 1 3 . Engine 3 | 1 2 . Core 1 | . 1 . Reactor . | . . . Propulsion 6 | 2 4 . Treads 5 | 2 3 . Leg . | . . . Wheel 1 | . 1 . Hover . | . . . Flight . | . . . Utility 3 | 1 2 . Device . | . . . Storage 2 | 1 1 . Processor 1 | . 1 . Hackware . | . . . Protection . | . . . Artifact . | . . . Weapon 10 | 2 7 1 Energy Gun 2 | . 2 . Energy Cannon . | . . . Ballistic Gun 6 | 2 4 . Ballistic Cannon 1 | . 1 . Launcher 1 | . . 1 Special Weapon . | . . . Impact Weapon . | . . . Slashing Weapon . | . . . Piercing Weapon . | . . . Special Melee Weapon . | . . . Unidentified Prototypes . | . . . Parts Lost 4 | . 4 . Power 1 | . 1 . Propulsion 2 | . 2 . Utility . | . . . Weapon 1 | . 1 . Highest Loss Streak 2 | . 2 . To Critical Strikes . | . . . Average Slot Usage (%) 91 | . 90 100 Engine 7 | . 7 14 Core 6 | . 6 . Treads 19 | . 20 14 Wheel 3 | . 2 14 Storage 14 | . 14 14 Processor 11 | . 11 14 Energy Gun 3 | . 3 . Ballistic Gun 22 | . 23 6 Ballistic Cannon 1 | . . 14 Peak Build Rating 10 | 6 10 8 Average Rating 7 | 4 8 8 On Entrance 4 | . 6 8 Naked Turns . | . . . Heaviest Build 19 | 12 17 19 Greatest Support 40 | 40 40 16 Greatest Overweight (x) 4 | . 4 1 Average Overweight (x) . | . . 1 Largest Inventory Capacity 10 | 8 10 10 Average Capacity 9 | 6 9 10 Most Carried 8 | . 8 8 Average Carried 3 | . 3 7 Final Capacity 10 | 8 10 10 Final Carried 8 | . 7 8 Class Distribution -------------------- 52% | Mutant 47% | Scavenger-Mutant Dominant Class ---------------- Scavenger-Mutant | -10/Materials Mutant | -10/Mines Resources | -11 -10 -10 ----------- Run | Yrd Mat Min Matter Collected 599 | 256 299 44 Remotely . | . . . Salvage Created 1114 | . 1068 46 Parts 90 | . 84 6 Haulers Intercepted 2 | . 2 . Recyclers Shooed 1 | . 1 . Parts Field Recycled . | . . . Retrieved Matter . | . . . Parts Self-Destructed . | . . . Prevented . | . . . Kills | -11 -10 -10 ------- Run | Yrd Mat Min Combat Hostiles Destroyed 27 | . 22 5 Guns 23 | . 22 1 Cannons 2 | . . 2 AOE 2 | . . 2 Classes Destroyed 7 | . 6 1 Builder 2 | . 2 . Hauler 2 | . 2 . Operator 2 | . 2 . Watcher 3 | . 3 . Swarmer 6 | . 3 3 Grunt 19 | . 19 . Assembled 2 | . . 2 Best Kill Streak 4 | . 4 3 Combat Bots Only 4 | . 4 3 Max Kills in Single Turn 2 | . 2 1 Gunslinging . | . . . Exploded 1 | . . 1 Melee . | . . . Uniques/NPCs Destroyed . | . . . Combat | -11 -10 -10 -------- Run | Yrd Mat Min Hostile Shots Fired 151 | . 125 26 Missed 37 | . 31 6 Damage Taken 1292 | . 1034 258 Core 263 | . 167 96 Absorbed by Shields . | . . . Core Remaining (%) 100 | 100 . . Volleys Fired 119 | . 104 15 Largest 2 | . 2 2 Hottest 65 | . 60 65 Shots Fired 227 | . 202 25 Gun 208 | . 201 7 Cannon 16 | . 1 15 Launcher 3 | . . 3 Special . | . . . Kinetic 199 | . 177 22 Thermal 25 | . 25 . Explosive 3 | . . 3 Electromagnetic . | . . . Robot Hit Streak 12 | . 12 3 Robot Miss Streak 6 | . 4 6 Penetration Max . | . . . Secondary Targets 5 | . 5 . Max Gunslinging Chain 1 | . 1 . Shots Hit Robots 147 | . 140 7 Core Hits 74 | . 66 8 Critical Kills . | . . . Critical Parts Destroyed 1 | . 1 . Critical Strikes 1 | . 1 . Destroy 1 | . 1 . Melee Attacks . | . . . Impact . | . . . Slashing . | . . . Piercing . | . . . Sneak Attacks . | . . . Combat Hostiles . | . . . Follow-up Attacks . | . . . Damage Inflicted 1391 | . 1195 196 Guns 1196 | . 1179 17 Cannons 84 | . 16 68 Explosions 111 | . . 111 Melee . | . . . Ramming . | . . . Kinetic 1119 | . 1034 85 Thermal 161 | . 161 . Explosive 111 | . . 111 Electromagnetic . | . . . Impact . | . . . Slashing . | . . . Piercing . | . . . Highest Corruption . | . . . Average Corruption . | . . . Corruption Purged . | . . . Corruption Blocked . | . . . Overload Shots . | . . . Overflow Damage . | . . . Projectiles . | . . . Explosions . | . . . Melee . | . . . Knockbacks 2 | . . 2 Impact . | . . . Kinetic 2 | . . 2 Secondary . | . . . Self-Inflicted Damage 21 | . . 21 Shots 1 | . . 1 Rammed . | . . . Targets Rammed . | . . . Kicked . | . . . Crushed . | . . . Highest Temperature 174 | . 174 28 Average Temperature 37 | . 40 12 Received Heat Transfer 539 | . 519 20 Siege Activations . | . . . Robots Corrupted . | . . . Combat Hostiles . | . . . Parts Fried . | . . . Impact Corruptions . | . . . Robots Melted . | . . . Combat Hostiles . | . . . Parts Melted . | . . . Heat Transferred 375 | . 375 . Parts Sabotaged . | . . . Parts Stolen . | . . . Parts Stripped . | . . . Power Chain Reactions . | . . . Alert | -11 -10 -10 ------- Run | Yrd Mat Min Peak Influence 311 | . 311 169 Initial 77 | . . 77 Average 163 | . 174 148 Maximum Alert Level 1 | . 1 . Low Security (%) 67 | 100 62 100 Level 1 32 | . 37 . Level 2 . | . . . Level 3 . | . . . Level 4 . | . . . Level 5 . | . . . High Security . | . . . Max Security . | . . . Squads Dispatched 7 | . 7 . Investigation 5 | . 5 . Extermination . | . . . Reinforcement 2 | . 2 . Assault . | . . . Garrison . | . . . Intercept . | . . . Searches Triggered . | . . . Construction Impeded . | . . . Haulers Reinforced . | . . . Active Scanning Responses . | . . . Cargo Convoy Interrupts . | . . . Stealth | -11 -10 -10 --------- Run | Yrd Mat Min Distress Signals 4 | . 4 . Communications Jammed . | . . . Distress Signals . | . . . Times Spotted 40 | . 33 7 Peak Tracking Total 4 | . 4 3 Tactical Retreats 1 | . 1 . Traps | -11 -10 -10 ------- Run | Yrd Mat Min Traps Triggered 2 | . 2 . Indirectly . | . . . Trap Hack Attempts . | . . . Triggered . | . . . Disarmed . | . . . Reprogrammed . | . . . Reused . | . . . Traps Extracted . | . . . Installed . | . . . Triggered . | . . . Machines | -11 -10 -10 ---------- Run | Yrd Mat Min Machines Disabled . | . . . Max in Single Turn . | . . . Machines Repaired . | . . . Machines Dismantled . | . . . Machines Sabotaged . | . . . Overloaded Fab Kills . | . . . Hacking | -11 -10 -10 --------- Run | Yrd Mat Min Machines Accessed 6 | . 6 . Terminals 6 | . 6 . Fabricators . | . . . Repair Stations . | . . . Recycling Units . | . . . Scanalyzers . | . . . Garrison Access . | . . . Total Hacks 17 | . 17 . Successful 7 | . 7 . Failed 10 | . 10 . Catastrophic 1 | . 1 . Database Lockouts . | . . . Manual 6 | . 6 . Terminals 17 | . 17 . Fabricators . | . . . Repair Stations . | . . . Recycling Units . | . . . Scanalyzers . | . . . Garrison Access . | . . . Terminal Hacks 5 | . 5 . Branch Access Points 1 | . 1 . Terminal Index 1 | . 1 . Alert Level 1 | . 1 . Zone Layout 2 | . 2 . Fabricator Hacks . | . . . Repair Station Hacks . | . . . Recycling Unit Hacks . | . . . Scanalyzer . | . . . Garrison Access Hacks . | . . . Unauthorized Hacks 2 | . 2 . Terminals 2 | . 2 . Botnet 2 | . 2 . Fabricators . | . . . Repair Stations . | . . . Recycling Units . | . . . Scanalyzers . | . . . Garrison Access . | . . . Data Cores Recovered . | . . . Used . | . . . Hacking Detections 5 | . 5 . Full Trace Events 4 | . 4 . Feedback Events . | . . . Feedback Blocked . | . . . Robot Schematics Acquired . | . . . Robots Built . | . . . Authchips . | . . . Time . | . . . Total Robot Build Rating . | . . . Part Schematics Acquired . | . . . Parts Built . | . . . Authchips . | . . . Time . | . . . Total Part Build Rating . | . . . Parts Repaired . | . . . Time . | . . . Parts Recycled . | . . . Recycled Matter . | . . . Retrieved Matter . | . . . Retrieved Components . | . . . Parts Scanalyzed . | . . . Part Schematics Acquired . | . . . Parts Damaged . | . . . Bothacking | -11 -10 -10 ------------ Run | Yrd Mat Min Used RIF Installer . | . . . Robots Hacked . | . . . Non-combat . | . . . Combat . | . . . Robot Hacks Applied . | . . . Relay Couplers Released . | . . . Fabnet Peak Effective % . | . . . Robots Rewired . | . . . Allies Hacked . | . . . Hacks Repelled . | . . . Allies | -11 -10 -10 -------- Run | Yrd Mat Min Total Allies . | . . . Largest Group . | . . . Highest-Rated Group . | . . . Highest-Rated Ally . | . . . Total Orders . | . . . Ally Attacks . | . . . Total Damage . | . . . Kills . | . . . Allies Corrupted . | . . . Allies Melted . | . . . Intel | -11 -10 -10 ------- Run | Yrd Mat Min Robot Analysis Total . | . . . Derelict Logs Recovered . | . . . Drone Launches . | . . . Drone Recoveries . | . . . Exploration | -11 -10 -10 ------------- Run | Yrd Mat Min Turns Passed 1410 | 68 1217 125 Spaces Moved 708 | 42 593 73 Core 25 | 6 19 . Treads 487 | 36 451 . Legs . | . . . Wheels 196 | . 123 73 Hover . | . . . Flight . | . . . Fastest Speed 50 | 50 100 115 Average Speed 146 | 144 151 115 Slowest Speed 250 | 160 250 115 Overloaded Moves . | . . . Propulsion Burnouts . | . . . Robots Hopped . | . . . Cave-ins Triggered . | . . . Exploration Rate (%) 35 | 4 90 13 Regions Visited 2 Branch Regions 1 Pre-discovered Areas . | . . . Known Exits Taken 1 | . 1 . Unknown Exits Taken 1 | 1 . . Scrap Searched . | . . . Spaces Dug . | . . . Terrain Destroyed 22 | . . 22 Melee . | . . . Projectile . | . . . AOE 22 | . . 22 Terrain Rammed . | . . . Walls Destroyed . | . . . Machines Disabled . | . . . Actions | -11 -10 -10 --------- Run | Yrd Mat Min Total 882 | 47 745 90 Wait 13 | . 13 . Move 706 | 41 592 73 Hop . | . . . Pick Up 9 | . 8 1 Fast Attach 13 | 6 7 . Attach . | . . . Detach 2 | . 2 . Swap 10 | . 9 1 Drop 10 | . 10 . Fire 119 | . 104 15 Melee . | . . . Ram . | . . . Kick . | . . . Crush . | . . . Escape Stasis . | . . . Rewire . | . . . Trap . | . . . Miscellaneous . | . . . Route ------- -11/Scrapyard -10/Materials (discovered 5 exits: [*Mat x3] / *Min x2) -10/Mines History --------- Turn | Location | Event 4 | -11/Scrapyard | Discovered new exit (range 14) 69 | -11/Scrapyard | Entered Materials 326 | -10/Materials | Build established: Mutant 334 | -10/Materials | Discovered new exit (range 16) 518 | -10/Materials | Discovered new exit (range 9) 628 | -10/Materials | Discovered new exit (range 6) 698 | -10/Materials | Build established: Scavenger-Mutant 799 | -10/Materials | Discovered new exit (range 12) 1062 | -10/Materials | Identified exit to Mines 1174 | -10/Materials | Core integrity fell below 50% 1286 | -10/Materials | Entered Mines 1294 | -10/Mines | Assembled infested the area 1319 | -10/Mines | YI-UF0 nonchalantly dropped a Grenade Launcher on the ground 1338 | -10/Mines | Core integrity fell below 20% 1341 | -10/Mines | Build established: Mutant 1411 | -10/Mines | Destroyed by as-76684 with Assembled Blade Last Messages --------------- Something is scanning the area. ALERT: Infestation in the mines, dispatching Demolisher response squad. S-10 Pest destroyed. Acquired 42 matter. YI-UF0 nonchalantly drops a Grenade Launcher on the ground. YI-UF0 mumbles something. Acquired Grenade Launcher. Acquired 2 matter. as-87885 destroyed. as-42013 destroyed. The unstable cave ceiling collapses. as-85310 knocked back. Destroyed Asb. F-torch. YI-UF0 mumbles something. YI-UF0: "BADABOOM!" as-85310 destroyed. YI-UF0 mumbles something. as-76684 knocked back. Map ----- +----------------------------------------------------+ | ?????????????????????????????????????????? | | ?????????????????????????????????????????? | | ?????????????????????????????????????????? | | ?????????????????????????????????????????? | | ?????????????????????????????????????????? | | ?????????????????????????????????????????? | | ?????????????????????????????????????????? | | ?????????????????????????????????????????? | | ?????????????????????????????????????????? | | ?????????????????????????????????????????? | | ?????????????????????????????????????????? | | ???????????????????????#?????????????????? | | ??????????????????????# ???????????????? | | ?????????????????????? ???????????????? | | ????????????????????## ????????????????? | | ???????????????????? ????????????????? | | ???????????????????? ????????????????? | | ????????????????????# ????????????????? | | ????????????????????# #????????????????? | | ????????????????????# #????????????????? | | ????????????????????# #????????????????? | | ???????????????????## #????????????????? | | ???????############# ##???????????????? | | ???????# ## ####????????????? | | ???????# #? * ?????????????? | | ???????# """ """ @#? #???????????????? | | ???????# """ """a ### #???????????????? | | ???????? """ """ #????????????????? | | ???????# ### ###???????????????? | | ???????############# #???????????????? | | ???????????######## #???????????????? | | ???????????# *= =[ #???????????????? | | ???????????# ####*[ #???????????????? | | ???######??# #?# ##???????????????? | | ??## ##?# #?# # ##???????????????? | | ??# ### #?#### ##??????????????? | | ??# #????# ##???####??????? | | ??# ######????# ##### ##?????? | | ??# #?????????## #?????? | | ??# #??????????## #?????? | | ??## ##???????????##### ## ##?????? | | ???####?????????????????###########??????? | | ?????????????????????????????????????????? | | ?????????????????????????????????????????? | | | | | | | | | | | | | +----------------------------------------------------+ Best States ------------- Heat Dissipation 25 Energy Generation 14 Energy Capacity 250 Matter Stores 300 Matter Capacity 300 Sight Range 18 Terrain Scan Density 10 Evasion (%) 40 Recoil Reduction 2 Item Schematics ----------------- None Robot Schematics ------------------ None Fabricated ------------ Nothing Alien Tech Used ----------------- None Achievements -------------- None Challenges ------------ None Game ------ Seed LinkedRestorationPod Manual? 0 Play Time 00:11:18 Cumulative 109.7 hours Start 2024.09.06 @ 18:05:41 End 2024.09.06 @ 18:16:28 Sessions 1 Manual Loads 0 Difficulty Rogue Special Mode None Game No. 102 Rogue 102 Adventurer 0 Explorer 0 Win Type - Total 1 Types 1/0/0/0/0/0/0/0/0 Lore% 41 Gallery% 53 Achievement% 43 Wizard Run 0 Options --------- Layout 2 ASCII 0 Keyboard 0 Movement Arrows Keybinds 0 Fullscreen 1 Font 16/Terminus Map View 55x47 Zoom Use 0% Tactical HUD 0 Map Filters NONE Filters NONE Steam 1 RUN: 21f9f712-0ad3-4968-9bc9-81c280e28827